[Event "Early-Titled-Tuesday-Blitz-October-24-2023"]
[Site "Chess.com"]
[Date "2023.10.24"]
[Round "5"]
[White "tarno17"]
[Black "Xqswdc"]
[Result "0-1"]
[WhiteElo "2102"]
[BlackElo "2332"]
[TimeControl "180+1"]
[EndTime "8:55:04 PDT"]
[Termination "Xqswdc won by checkmate"]

1. e4 {[%clk 0:03:00.9]} 1... g6 {[%clk 0:02:52.9]} 2. d4 {[%clk 0:02:59.7]}
2... Bg7 {[%clk 0:02:52.5]} 3. f4 {[%clk 0:02:58.7]} 3... d5 {[%clk 0:02:52]} 4.
Nd2 {[%clk 0:02:53.5]} 4... Bxd4 {[%clk 0:02:50.2]} 5. Ngf3 {[%clk 0:02:46.4]}
5... dxe4 {[%clk 0:02:42.6]} 6. Nxe4 {[%clk 0:02:41.7]} 6... Nc6 {[%clk
0:02:40.2]} 7. Bb5 {[%clk 0:02:18.2]} 7... Bb6 {[%clk 0:02:24.2]} 8. Qxd8+
{[%clk 0:02:06.6]} 8... Kxd8 {[%clk 0:02:25.1]} 9. Bxc6 {[%clk 0:01:52.1]} 9...
bxc6 {[%clk 0:02:24.9]} 10. Ne5 {[%clk 0:01:53]} 10... Ke8 {[%clk 0:02:20.5]}
11. Bd2 {[%clk 0:01:38.4]} 11... Bf5 {[%clk 0:02:12.9]} 12. Nf2 {[%clk
0:01:10.7]} 12... Nf6 {[%clk 0:02:07.7]} 13. O-O {[%clk 0:00:47.7]} 13... Rd8
{[%clk 0:01:47.7]} 14. Bb4 {[%clk 0:00:35.6]} 14... Ne4 {[%clk 0:01:30]} 15.
Nxc6 {[%clk 0:00:28.4]} 15... Nxf2 {[%clk 0:01:12.1]} 16. Rxf2 {[%clk
0:00:28.3]} 16... Rd7 {[%clk 0:00:58.8]} 17. Ne5 {[%clk 0:00:19.1]} 17... Rd5
{[%clk 0:00:57.4]} 18. Bc3 {[%clk 0:00:15.9]} 18... f6 {[%clk 0:00:50.7]} 19.
Nc4 {[%clk 0:00:07.4]} 19... Bxf2+ {[%clk 0:00:49.4]} 20. Kxf2 {[%clk
0:00:07.6]} 20... Kf7 {[%clk 0:00:49.9]} 21. h3 {[%clk 0:00:06.9]} 21... Rhd8
{[%clk 0:00:49.7]} 22. g4 {[%clk 0:00:06.9]} 22... Bc8 {[%clk 0:00:40.8]} 23.
Re1 {[%clk 0:00:05.5]} 23... Ba6 {[%clk 0:00:40.2]} 24. Ne3 {[%clk 0:00:04.8]}
24... Rc5 {[%clk 0:00:36.4]} 25. f5 {[%clk 0:00:04.7]} 25... g5 {[%clk
0:00:34.6]} 26. Kg3 {[%clk 0:00:02.9]} 26... Bc4 {[%clk 0:00:34.5]} 27. h4
{[%clk 0:00:03.3]} 27... gxh4+ {[%clk 0:00:34.5]} 28. Kxh4 {[%clk 0:00:03.5]}
28... Bxa2 {[%clk 0:00:35.1]} 29. Re2 {[%clk 0:00:02.6]} 29... Bc4 {[%clk
0:00:34.1]} 30. Rf2 {[%clk 0:00:02.4]} 30... h5 {[%clk 0:00:29]} 31. g5 {[%clk
0:00:02.6]} 31... fxg5+ {[%clk 0:00:23.9]} 32. Kxg5 {[%clk 0:00:03.5]} 32...
Rg8+ {[%clk 0:00:22.8]} 33. Kxh5 {[%clk 0:00:04]} 33... Kf8 {[%clk 0:00:18.2]}
34. Ng4 {[%clk 0:00:03.9]} 34... Bf7+ {[%clk 0:00:18.1]} 35. Kh4 {[%clk
0:00:04]} 35... Rc4 {[%clk 0:00:18.8]} 36. Rg2 {[%clk 0:00:03.8]} 36... Bd5
{[%clk 0:00:18.9]} 37. Rg3 {[%clk 0:00:04.1]} 37... Bf3 {[%clk 0:00:19.1]} 38.
Kh3 {[%clk 0:00:01]} 38... Bxg4+ {[%clk 0:00:17.9]} 39. Kh2 {[%clk 0:00:01.9]}
39... Bxf5 {[%clk 0:00:17.3]} 40. Re3 {[%clk 0:00:02.2]} 40... Rh4+ {[%clk
0:00:17.4]} 41. Rh3 {[%clk 0:00:01.4]} 41... Rxh3# {[%clk 0:00:18.3]} 0-1

[Event "Early-Titled-Tuesday-Blitz-October-24-2023"]
[Site "Chess.com"]
[Date "2023.10.24"]
[Round "5"]
[White "FairChess_on_YouTube"]
[Black "Nitzan_Steinberg"]
[Result "1-0"]
[WhiteElo "3101"]
[BlackElo "2879"]
[TimeControl "180+1"]
[EndTime "8:55:05 PDT"]
[Termination "FairChess_on_YouTube won by resignation"]

1. c4 {[%clk 0:03:00.9]} 1... e5 {[%clk 0:02:59.3]} 2. Nc3 {[%clk 0:03:00.6]}
2... Nf6 {[%clk 0:02:57.9]} 3. e3 {[%clk 0:02:59.2]} 3... Bb4 {[%clk 0:02:56.5]}
4. Nge2 {[%clk 0:02:58.8]} 4... O-O {[%clk 0:02:56.4]} 5. a3 {[%clk 0:02:58.9]}
5... Bxc3 {[%clk 0:02:49.2]} 6. Nxc3 {[%clk 0:02:59.8]} 6... Re8 {[%clk
0:02:49.3]} 7. b4 {[%clk 0:02:55.6]} 7... b6 {[%clk 0:02:39.2]} 8. Be2 {[%clk
0:02:53.1]} 8... Bb7 {[%clk 0:02:39.1]} 9. O-O {[%clk 0:02:53.7]} 9... a5 {[%clk
0:02:33.5]} 10. Bb2 {[%clk 0:02:51.7]} 10... Nc6 {[%clk 0:02:33.8]} 11. b5
{[%clk 0:02:39.1]} 11... Ne7 {[%clk 0:02:33.8]} 12. d4 {[%clk 0:02:39.6]} 12...
exd4 {[%clk 0:02:23.2]} 13. Qxd4 {[%clk 0:02:32.1]} 13... d6 {[%clk 0:02:16.7]}
14. Rad1 {[%clk 0:02:24.4]} 14... Ng6 {[%clk 0:02:11.3]} 15. Nd5 {[%clk
0:02:13.3]} 15... Bxd5 {[%clk 0:02:00.1]} 16. cxd5 {[%clk 0:02:13.3]} 16... h5
{[%clk 0:01:54.6]} 17. Rd2 {[%clk 0:02:06.1]} 17... h4 {[%clk 0:01:47.6]} 18. h3
{[%clk 0:02:06.3]} 18... Re4 {[%clk 0:01:45.8]} 19. Qc3 {[%clk 0:02:02.3]} 19...
Qe7 {[%clk 0:01:34.9]} 20. Rc1 {[%clk 0:02:01.4]} 20... Ra7 {[%clk 0:01:32.4]}
21. Bd3 {[%clk 0:01:32.8]} 21... Re5 {[%clk 0:01:30.6]} 22. Qc4 {[%clk
0:01:26.8]} 22... Rg5 {[%clk 0:01:22.8]} 23. Bxg6 {[%clk 0:01:25.4]} 23... Rxg6
{[%clk 0:01:22.7]} 24. Qf4 {[%clk 0:01:02.4]} 24... Qd7 {[%clk 0:01:13]} 25.
Bxf6 {[%clk 0:00:46.1]} 25... Rxf6 {[%clk 0:01:12.7]} 26. Qc4 {[%clk 0:00:44.3]}
26... Rg6 {[%clk 0:01:05.1]} 27. Kf1 {[%clk 0:00:38.6]} 27... a4 {[%clk
0:01:01.5]} 28. Rb2 {[%clk 0:00:35.4]} 28... Qf5 {[%clk 0:00:54.1]} 29. Rb4
{[%clk 0:00:32.7]} 29... Qe5 {[%clk 0:00:48.9]} 30. Qc6 {[%clk 0:00:26.1]} 30...
Rf6 {[%clk 0:00:18.2]} 31. Rxh4 {[%clk 0:00:22.5]} 31... Qxe3 {[%clk 0:00:17.2]}
32. Rc2 {[%clk 0:00:12.3]} 32... g6 {[%clk 0:00:16.2]} 33. Re2 {[%clk
0:00:11.8]} 33... Rxf2+ {[%clk 0:00:04.3]} 34. Rxf2 {[%clk 0:00:12.7]} 34... Kg7
{[%clk 0:00:02.7]} 35. Rf3 {[%clk 0:00:10.4]} 35... Qc1+ {[%clk 0:00:02.1]} 36.
Qxc1 {[%clk 0:00:10.4]} 1-0

[Event "Early-Titled-Tuesday-Blitz-October-24-2023"]
[Site "Chess.com"]
[Date "2023.10.24"]
[Round "5"]
[White "NovoselovRoman"]
[Black "viktorgen2021"]
[Result "0-1"]
[WhiteElo "2558"]
[BlackElo "2439"]
[TimeControl "180+1"]
[EndTime "8:55:05 PDT"]
[Termination "viktorgen2021 won on time"]

1. d4 {[%clk 0:03:00.9]} 1... Nf6 {[%clk 0:02:45.6]} 2. Nc3 {[%clk 0:02:58.3]}
2... g6 {[%clk 0:02:43.7]} 3. e4 {[%clk 0:02:55.6]} 3... Bg7 {[%clk 0:02:43.1]}
4. Bf4 {[%clk 0:02:55.8]} 4... O-O {[%clk 0:02:43.4]} 5. Nf3 {[%clk 0:02:54.6]}
5... d6 {[%clk 0:02:44]} 6. Qd2 {[%clk 0:02:51.3]} 6... c6 {[%clk 0:02:43.1]} 7.
Bh6 {[%clk 0:02:50.5]} 7... b5 {[%clk 0:02:41.9]} 8. Bd3 {[%clk 0:02:49.4]} 8...
Nbd7 {[%clk 0:02:41.1]} 9. h4 {[%clk 0:02:45.4]} 9... e5 {[%clk 0:02:38.2]} 10.
O-O-O {[%clk 0:02:36.3]} 10... Qe7 {[%clk 0:02:14.7]} 11. h5 {[%clk 0:02:19.7]}
11... Nxh5 {[%clk 0:02:06.6]} 12. Rxh5 {[%clk 0:02:17.7]} 12... gxh5 {[%clk
0:02:06.7]} 13. Rh1 {[%clk 0:02:17.7]} 13... exd4 {[%clk 0:02:00.8]} 14. Bxg7
{[%clk 0:02:14.1]} 14... Kxg7 {[%clk 0:02:00.1]} 15. Rxh5 {[%clk 0:02:14.3]}
15... f6 {[%clk 0:01:49.6]} 16. Nxd4 {[%clk 0:02:05.5]} 16... Ne5 {[%clk
0:01:45.7]} 17. Nce2 {[%clk 0:01:35]} 17... c5 {[%clk 0:01:42.3]} 18. Nxb5
{[%clk 0:01:22.6]} 18... c4 {[%clk 0:01:37.3]} 19. Qh6+ {[%clk 0:00:27.5]} 19...
Kg8 {[%clk 0:01:32.2]} 20. Nf4 {[%clk 0:00:28.4]} 20... cxd3 {[%clk 0:01:24.5]}
21. Nxd6 {[%clk 0:00:25.2]} 21... d2+ {[%clk 0:01:17.3]} 22. Kd1 {[%clk
0:00:17.4]} 22... Bg4+ {[%clk 0:01:11.7]} 23. f3 {[%clk 0:00:17.8]} 23... Nxf3
{[%clk 0:00:49]} 24. gxf3 {[%clk 0:00:18.7]} 24... Bxf3+ {[%clk 0:00:48.7]} 25.
Kxd2 {[%clk 0:00:19.6]} 25... Qxd6+ {[%clk 0:00:48.2]} 26. Ke3 {[%clk
0:00:12.5]} 26... Bxe4 {[%clk 0:00:39.8]} 27. Kxe4 {[%clk 0:00:08.8]} 27... f5+
{[%clk 0:00:39.5]} 28. Kf3 {[%clk 0:00:09]} 28... Qxh6 {[%clk 0:00:39.5]} 29.
Rxh6 {[%clk 0:00:09.9]} 29... Kg7 {[%clk 0:00:40.2]} 30. Rd6 {[%clk 0:00:08.3]}
30... Rf7 {[%clk 0:00:39.3]} 31. Nh5+ {[%clk 0:00:07.5]} 31... Kf8 {[%clk
0:00:37.6]} 32. Kf4 {[%clk 0:00:08.4]} 32... Rc8 {[%clk 0:00:36.9]} 33. c3
{[%clk 0:00:08]} 33... Rc4+ {[%clk 0:00:36.2]} 34. Ke5 {[%clk 0:00:08.4]} 34...
Re4+ {[%clk 0:00:34.9]} 35. Kd5 {[%clk 0:00:07.7]} 35... Re1 {[%clk 0:00:33.1]}
36. Kc6 {[%clk 0:00:06.2]} 36... f4 {[%clk 0:00:29.8]} 37. Rd8+ {[%clk
0:00:05.1]} 37... Ke7 {[%clk 0:00:29.6]} 38. Rd7+ {[%clk 0:00:05.3]} 38... Ke8
{[%clk 0:00:27.1]} 39. Ng7+ {[%clk 0:00:03.6]} 39... Kf8 {[%clk 0:00:22.6]} 0-1

[Event "Early-Titled-Tuesday-Blitz-October-24-2023"]
[Site "Chess.com"]
[Date "2023.10.24"]
[Round "5"]
[White "Fan_Of_Chucky"]
[Black "alexrustemov"]
[Result "0-1"]
[WhiteElo "2531"]
[BlackElo "2777"]
[TimeControl "180+1"]
[EndTime "8:55:06 PDT"]
[Termination "alexrustemov won on time"]

1. d4 {[%clk 0:03:00.9]} 1... d5 {[%clk 0:02:59.1]} 2. c4 {[%clk 0:03:01.3]}
2... dxc4 {[%clk 0:02:59.1]} 3. e4 {[%clk 0:03:00.7]} 3... Nf6 {[%clk
0:02:59.2]} 4. e5 {[%clk 0:03:00.6]} 4... Nd5 {[%clk 0:02:59.6]} 5. Bxc4 {[%clk
0:03:01.3]} 5... Nb6 {[%clk 0:03:00.4]} 6. Bd3 {[%clk 0:02:57]} 6... Nc6 {[%clk
0:03:00.9]} 7. Nf3 {[%clk 0:02:55.1]} 7... Be6 {[%clk 0:03:01.3]} 8. O-O {[%clk
0:02:51.9]} 8... Qd7 {[%clk 0:03:00]} 9. Be3 {[%clk 0:02:50.1]} 9... Bg4 {[%clk
0:02:44.7]} 10. h3 {[%clk 0:02:39.9]} 10... Bh5 {[%clk 0:02:43.9]} 11. Be4
{[%clk 0:02:35.4]} 11... e6 {[%clk 0:02:43]} 12. Nc3 {[%clk 0:02:18.4]} 12...
Bg6 {[%clk 0:02:36.7]} 13. Bxg6 {[%clk 0:02:10.9]} 13... hxg6 {[%clk 0:02:36.2]}
14. Qd3 {[%clk 0:02:08.3]} 14... O-O-O {[%clk 0:02:33.3]} 15. Rfd1 {[%clk
0:02:03.7]} 15... Kb8 {[%clk 0:02:30.5]} 16. a4 {[%clk 0:02:02.4]} 16... a6
{[%clk 0:02:23.7]} 17. a5 {[%clk 0:01:51.2]} 17... Nd5 {[%clk 0:02:23]} 18. Nxd5
{[%clk 0:01:51.3]} 18... Qxd5 {[%clk 0:02:21.2]} 19. Rdc1 {[%clk 0:01:43]} 19...
Be7 {[%clk 0:02:16.8]} 20. Qc2 {[%clk 0:01:33]} 20... Rd7 {[%clk 0:02:08.9]} 21.
Qc4 {[%clk 0:01:19.9]} 21... Qxc4 {[%clk 0:02:00.3]} 22. Rxc4 {[%clk 0:01:20.8]}
22... Rd5 {[%clk 0:01:59.9]} 23. Bd2 {[%clk 0:01:15.7]} 23... Rhd8 {[%clk
0:01:57.9]} 24. Bc3 {[%clk 0:01:12.6]} 24... Rb5 {[%clk 0:01:53.4]} 25. Kf1
{[%clk 0:00:44.1]} 25... Rdd5 {[%clk 0:01:53.2]} 26. Rca4 {[%clk 0:00:39.2]}
26... Bb4 {[%clk 0:01:21.5]} 27. Bxb4 {[%clk 0:00:26.4]} 27... Nxb4 {[%clk
0:01:17.3]} 28. Ke2 {[%clk 0:00:15.7]} 28... Nc6 {[%clk 0:01:16.7]} 29. Ke3
{[%clk 0:00:08.5]} 29... Rb3+ {[%clk 0:01:12.4]} 30. Ke4 {[%clk 0:00:05.9]}
30... Rxb2 {[%clk 0:01:11.3]} 31. R1a2 {[%clk 0:00:06.3]} 31... Rbb5 {[%clk
0:01:05.4]} 32. Ng5 {[%clk 0:00:04.1]} 32... Rd7 {[%clk 0:01:04.4]} 33. R2a3
{[%clk 0:00:02.1]} 33... f5+ {[%clk 0:00:54.1]} 34. exf6 {[%clk 0:00:02]} 34...
gxf6 {[%clk 0:00:54.6]} 35. Nf3 {[%clk 0:00:01.3]} 35... Rdd5 {[%clk 0:00:50.2]}
36. Nd2 {[%clk 0:00:01.3]} 36... Rxa5 {[%clk 0:00:49.5]} 37. Rxa5 {[%clk
0:00:01.4]} 37... Nxa5 {[%clk 0:00:47.5]} 38. Rg3 {[%clk 0:00:02.3]} 38... g5
{[%clk 0:00:46.2]} 39. f4 {[%clk 0:00:02.1]} 39... f5+ {[%clk 0:00:42.6]} 40.
Ke3 {[%clk 0:00:01.8]} 40... gxf4+ {[%clk 0:00:43]} 41. Kxf4 {[%clk 0:00:02.4]}
41... Rxd4+ {[%clk 0:00:43.2]} 42. Ke5 {[%clk 0:00:03.3]} 42... Rxd2 {[%clk
0:00:38.4]} 43. h4 {[%clk 0:00:03.8]} 43... Rd6 {[%clk 0:00:28.1]} 44. h5 {[%clk
0:00:01.7]} 44... Nc6+ {[%clk 0:00:27.7]} 0-1

[Event "Early-Titled-Tuesday-Blitz-October-24-2023"]
[Site "Chess.com"]
[Date "2023.10.24"]
[Round "5"]
[White "Arimin1329"]
[Black "dennisodessa"]
[Result "1-0"]
[WhiteElo "2325"]
[BlackElo "2548"]
[TimeControl "180+1"]
[EndTime "8:55:06 PDT"]
[Termination "Arimin1329 won on time"]

1. d4 {[%clk 0:03:00.9]} 1... Nf6 {[%clk 0:03:00.1]} 2. Nf3 {[%clk 0:03:01.8]}
2... c5 {[%clk 0:02:59.8]} 3. e3 {[%clk 0:02:58]} 3... b6 {[%clk 0:02:59.9]} 4.
b3 {[%clk 0:02:58.1]} 4... Bb7 {[%clk 0:03:00.1]} 5. Bb2 {[%clk 0:02:58.3]} 5...
e6 {[%clk 0:03:01]} 6. Nbd2 {[%clk 0:02:57.9]} 6... Be7 {[%clk 0:03:01.6]} 7.
Bd3 {[%clk 0:02:56.5]} 7... cxd4 {[%clk 0:02:58.6]} 8. Bxd4 {[%clk 0:02:51.5]}
8... O-O {[%clk 0:02:59.5]} 9. O-O {[%clk 0:02:50.9]} 9... Nc6 {[%clk
0:02:58.6]} 10. Bb2 {[%clk 0:02:50.3]} 10... d5 {[%clk 0:02:59.5]} 11. c4 {[%clk
0:02:49.7]} 11... Nb4 {[%clk 0:02:49.3]} 12. Be2 {[%clk 0:02:43.7]} 12... Rc8
{[%clk 0:02:38.6]} 13. Ne5 {[%clk 0:02:39.7]} 13... dxc4 {[%clk 0:02:26.8]} 14.
Ndxc4 {[%clk 0:02:38.4]} 14... Qd5 {[%clk 0:02:26.9]} 15. Bf3 {[%clk 0:02:25.9]}
15... Qxd1 {[%clk 0:02:26.4]} 16. Rfxd1 {[%clk 0:02:23.2]} 16... Bxf3 {[%clk
0:02:26]} 17. Nxf3 {[%clk 0:02:20.9]} 17... Rfd8 {[%clk 0:02:25.8]} 18. Nfe5
{[%clk 0:02:04.9]} 18... Kf8 {[%clk 0:02:08.4]} 19. Rxd8+ {[%clk 0:02:00.2]}
19... Rxd8 {[%clk 0:02:07.8]} 20. Ba3 {[%clk 0:01:56.7]} 20... Rc8 {[%clk
0:01:37.7]} 21. h3 {[%clk 0:01:30.4]} 21... Nc2 {[%clk 0:01:28.7]} 22. Bxe7+
{[%clk 0:01:28.4]} 22... Kxe7 {[%clk 0:01:29.6]} 23. Rd1 {[%clk 0:01:26.7]}
23... Nb4 {[%clk 0:01:19.8]} 24. a3 {[%clk 0:01:09.2]} 24... Nbd5 {[%clk
0:00:53.7]} 25. Nxf7 {[%clk 0:00:59]} 25... b5 {[%clk 0:00:54]} 26. Ncd6 {[%clk
0:00:39.4]} 26... Rf8 {[%clk 0:00:48.1]} 27. Rc1 {[%clk 0:00:32.8]} 27... Rxf7
{[%clk 0:00:46.9]} 28. Nxf7 {[%clk 0:00:32.8]} 28... Kxf7 {[%clk 0:00:47.8]} 29.
Rc5 {[%clk 0:00:28.2]} 29... b4 {[%clk 0:00:20]} 30. axb4 {[%clk 0:00:24.9]}
30... Nxb4 {[%clk 0:00:20.9]} 31. Rc7+ {[%clk 0:00:25.4]} 31... Kg6 {[%clk
0:00:20.4]} 32. Rxa7 {[%clk 0:00:25.7]} 32... Ne4 {[%clk 0:00:20.4]} 33. Rb7
{[%clk 0:00:25.4]} 33... Nd5 {[%clk 0:00:19.8]} 34. b4 {[%clk 0:00:20.9]} 34...
Kf6 {[%clk 0:00:17.2]} 35. f3 {[%clk 0:00:18.1]} 35... Nd6 {[%clk 0:00:17.6]}
36. Rd7 {[%clk 0:00:16.5]} 36... Nc4 {[%clk 0:00:15.5]} 37. e4 {[%clk
0:00:16.3]} 37... Nxb4 {[%clk 0:00:16]} 38. Rd4 {[%clk 0:00:16.1]} 1-0

[Event "Early-Titled-Tuesday-Blitz-October-24-2023"]
[Site "Chess.com"]
[Date "2023.10.24"]
[Round "5"]
[White "adotand"]
[Black "Doomfist26"]
[Result "0-1"]
[WhiteElo "2839"]
[BlackElo "2643"]
[TimeControl "180+1"]
[EndTime "8:55:08 PDT"]
[Termination "Doomfist26 won by resignation"]

1. Nf3 {[%clk 0:03:00.9]} 1... Nf6 {[%clk 0:02:59.7]} 2. c4 {[%clk 0:03:01.2]}
2... g6 {[%clk 0:02:57.7]} 3. g3 {[%clk 0:03:00.9]} 3... Bg7 {[%clk 0:02:57.7]}
4. Bg2 {[%clk 0:03:01.7]} 4... O-O {[%clk 0:02:58.1]} 5. O-O {[%clk 0:03:02.6]}
5... c5 {[%clk 0:02:58.7]} 6. Nc3 {[%clk 0:03:02.3]} 6... Nc6 {[%clk 0:02:58.8]}
7. d3 {[%clk 0:03:01.9]} 7... d6 {[%clk 0:02:57.2]} 8. a3 {[%clk 0:03:01.9]}
8... a6 {[%clk 0:02:55.9]} 9. Bd2 {[%clk 0:03:02.1]} 9... Rb8 {[%clk 0:02:55.9]}
10. Rb1 {[%clk 0:03:01.5]} 10... b5 {[%clk 0:02:56.1]} 11. cxb5 {[%clk
0:03:02.2]} 11... axb5 {[%clk 0:02:57]} 12. b4 {[%clk 0:03:03.1]} 12... cxb4
{[%clk 0:02:57.3]} 13. axb4 {[%clk 0:03:04]} 13... Bd7 {[%clk 0:02:51.7]} 14. h4
{[%clk 0:02:47.3]} 14... Qc8 {[%clk 0:02:45.9]} 15. Ng5 {[%clk 0:02:43.4]} 15...
h6 {[%clk 0:02:43.4]} 16. Nge4 {[%clk 0:02:43.8]} 16... Nxe4 {[%clk 0:02:38.2]}
17. Nxe4 {[%clk 0:02:44.7]} 17... Bh3 {[%clk 0:02:38.8]} 18. Rc1 {[%clk
0:02:42.3]} 18... Bxg2 {[%clk 0:02:37]} 19. Kxg2 {[%clk 0:02:43.2]} 19... Qb7
{[%clk 0:02:37.3]} 20. f3 {[%clk 0:02:42.5]} 20... Ra8 {[%clk 0:02:29.3]} 21. g4
{[%clk 0:01:55.3]} 21... Ra2 {[%clk 0:02:24.7]} 22. Qb3 {[%clk 0:01:50.9]} 22...
Rb2 {[%clk 0:02:19.1]} 23. Qd5 {[%clk 0:01:50.5]} 23... Rc8 {[%clk 0:02:13.1]}
24. h5 {[%clk 0:01:37]} 24... gxh5 {[%clk 0:01:47.3]} 25. gxh5 {[%clk
0:01:23.8]} 25... Qd7 {[%clk 0:01:15.8]} 26. Rg1 {[%clk 0:01:12.5]} 26... Nxb4
{[%clk 0:00:51.8]} 27. Rxc8+ {[%clk 0:01:06.4]} 27... Qxc8 {[%clk 0:00:52.7]}
28. Qxb5 {[%clk 0:01:07.1]} 28... d5 {[%clk 0:00:43.6]} 29. Kf2 {[%clk
0:00:41.2]} 29... dxe4 {[%clk 0:00:06.6]} 30. Qe5 {[%clk 0:00:20]} 30... Nxd3+
{[%clk 0:00:05.3]} 31. exd3 {[%clk 0:00:18.5]} 31... Rxd2+ {[%clk 0:00:06]} 32.
Ke3 {[%clk 0:00:18.8]} 32... Rxd3+ {[%clk 0:00:06.6]} 33. Kf4 {[%clk 0:00:08.1]}
33... Rxf3+ {[%clk 0:00:06.6]} 34. Kxe4 {[%clk 0:00:08.8]} 34... Qc6+ {[%clk
0:00:04.9]} 35. Kd4 {[%clk 0:00:05.2]} 35... Qc3+ {[%clk 0:00:05.2]} 0-1

[Event "Early-Titled-Tuesday-Blitz-October-24-2023"]
[Site "Chess.com"]
[Date "2023.10.24"]
[Round "5"]
[White "NowInChess"]
[Black "ChessBliss09"]
[Result "1-0"]
[WhiteElo "2231"]
[BlackElo "2018"]
[TimeControl "180+1"]
[EndTime "8:55:08 PDT"]
[Termination "NowInChess won by checkmate"]

1. e4 {[%clk 0:03:00.9]} 1... e6 {[%clk 0:02:59.7]} 2. d3 {[%clk 0:02:58.5]}
2... d5 {[%clk 0:03:00.1]} 3. Nd2 {[%clk 0:02:58]} 3... c5 {[%clk 0:02:59.2]} 4.
g3 {[%clk 0:02:57.6]} 4... Nc6 {[%clk 0:02:59.4]} 5. Bg2 {[%clk 0:02:58.2]} 5...
Nf6 {[%clk 0:02:58]} 6. Ngf3 {[%clk 0:02:58.5]} 6... Be7 {[%clk 0:02:51.4]} 7.
O-O {[%clk 0:02:58.1]} 7... O-O {[%clk 0:02:47]} 8. e5 {[%clk 0:02:57.1]} 8...
Nd7 {[%clk 0:02:46.7]} 9. Re1 {[%clk 0:02:56.9]} 9... Qc7 {[%clk 0:02:43]} 10.
Qe2 {[%clk 0:02:56.9]} 10... b5 {[%clk 0:02:41.9]} 11. h4 {[%clk 0:02:55]} 11...
b4 {[%clk 0:02:35.8]} 12. Nf1 {[%clk 0:02:54.5]} 12... a5 {[%clk 0:02:34.7]} 13.
Bf4 {[%clk 0:02:52.3]} 13... Ba6 {[%clk 0:02:28.4]} 14. c3 {[%clk 0:02:31.3]}
14... Rab8 {[%clk 0:02:01.3]} 15. N1h2 {[%clk 0:02:14.5]} 15... a4 {[%clk
0:02:01]} 16. a3 {[%clk 0:02:11.2]} 16... bxc3 {[%clk 0:01:56.3]} 17. bxc3
{[%clk 0:02:10.5]} 17... c4 {[%clk 0:01:56]} 18. d4 {[%clk 0:02:08.5]} 18... Rb3
{[%clk 0:01:54.6]} 19. Rec1 {[%clk 0:01:59.4]} 19... Rfb8 {[%clk 0:01:54.2]} 20.
Ng5 {[%clk 0:01:51.5]} 20... h6 {[%clk 0:01:50.6]} 21. Qh5 {[%clk 0:01:50.2]}
21... hxg5 {[%clk 0:01:33.8]} 22. hxg5 {[%clk 0:01:51.1]} 22... g6 {[%clk
0:01:33.5]} 23. Qh4 {[%clk 0:01:47.5]} 23... Bf8 {[%clk 0:00:35.2]} 24. Ng4
{[%clk 0:01:41.3]} 24... Bg7 {[%clk 0:00:35]} 25. Nf6+ {[%clk 0:01:37.5]} 25...
Kf8 {[%clk 0:00:08.5]} 26. Qh7 {[%clk 0:01:22.4]} 26... Ke7 {[%clk 0:00:04.5]}
27. Qxg7 {[%clk 0:01:15.5]} 27... Qd8 {[%clk 0:00:04.4]} 28. Nxd5+ {[%clk
0:01:00.4]} 28... exd5 {[%clk 0:00:03.5]} 29. Bxd5 {[%clk 0:01:01.3]} 29... Qf8
{[%clk 0:00:03.8]} 30. Qxf8+ {[%clk 0:00:53.6]} 30... Nxf8 {[%clk 0:00:04.6]}
31. Bxc6 {[%clk 0:00:47.8]} 31... R8b6 {[%clk 0:00:05.2]} 32. Be4 {[%clk
0:00:42.2]} 32... Ne6 {[%clk 0:00:05.2]} 33. Be3 {[%clk 0:00:36.6]} 33... Rb2
{[%clk 0:00:05.1]} 34. d5 {[%clk 0:00:35.7]} 34... R6b3 {[%clk 0:00:04.6]} 35.
dxe6 {[%clk 0:00:33.7]} 35... Kxe6 {[%clk 0:00:05.5]} 36. Bd4 {[%clk 0:00:31.4]}
36... Rc2 {[%clk 0:00:03.9]} 37. Bxc2 {[%clk 0:00:30.6]} 37... Rb2 {[%clk
0:00:03.7]} 38. Bxa4 {[%clk 0:00:29.7]} 38... Bb7 {[%clk 0:00:03.8]} 39. Rab1
{[%clk 0:00:29.4]} 39... Ra2 {[%clk 0:00:03.4]} 40. Rxb7 {[%clk 0:00:28.8]}
40... Rxa3 {[%clk 0:00:04.1]} 41. Rb6+ {[%clk 0:00:26.9]} 41... Kf5 {[%clk
0:00:03.4]} 42. Bd7+ {[%clk 0:00:26]} 42... Ke4 {[%clk 0:00:03.7]} 43. Bc6+
{[%clk 0:00:24.5]} 43... Kd3 {[%clk 0:00:03.5]} 44. Rb2 {[%clk 0:00:20.6]} 44...
Ra6 {[%clk 0:00:01.6]} 45. Rd1# {[%clk 0:00:20.8]} 1-0

[Event "Early-Titled-Tuesday-Blitz-October-24-2023"]
[Site "Chess.com"]
[Date "2023.10.24"]
[Round "5"]
[White "abc_xyz4744"]
[Black "Karttunen"]
[Result "0-1"]
[WhiteElo "2392"]
[BlackElo "2618"]
[TimeControl "180+1"]
[EndTime "8:55:10 PDT"]
[Termination "Karttunen won by resignation"]

1. e4 {[%clk 0:02:39.1]} 1... e5 {[%clk 0:02:59.1]} 2. Nf3 {[%clk 0:02:18.4]}
2... Nc6 {[%clk 0:02:58.4]} 3. Bc4 {[%clk 0:02:18.4]} 3... Nf6 {[%clk
0:02:55.2]} 4. d3 {[%clk 0:02:16.1]} 4... h6 {[%clk 0:02:50.1]} 5. c3 {[%clk
0:02:05.1]} 5... Be7 {[%clk 0:02:38.7]} 6. Nbd2 {[%clk 0:01:53.1]} 6... d6
{[%clk 0:02:33]} 7. O-O {[%clk 0:01:49.8]} 7... g5 {[%clk 0:02:32.4]} 8. Re1
{[%clk 0:01:49.2]} 8... Rg8 {[%clk 0:02:17.2]} 9. Nf1 {[%clk 0:01:48.1]} 9...
Rg7 {[%clk 0:02:01.9]} 10. d4 {[%clk 0:01:47.7]} 10... Bd7 {[%clk 0:01:57.2]}
11. Ng3 {[%clk 0:01:26.6]} 11... Qc8 {[%clk 0:01:36.5]} 12. b4 {[%clk
0:01:05.6]} 12... Bg4 {[%clk 0:01:25]} 13. h3 {[%clk 0:01:02.8]} 13... Bd7
{[%clk 0:00:49.3]} 14. b5 {[%clk 0:00:55.5]} 14... Na5 {[%clk 0:00:46.4]} 15.
Bd3 {[%clk 0:00:32.9]} 15... g4 {[%clk 0:00:43.5]} 16. dxe5 {[%clk 0:00:20.4]}
16... dxe5 {[%clk 0:00:37.8]} 17. Nxe5 {[%clk 0:00:20.8]} 17... gxh3 {[%clk
0:00:37.7]} 18. Bxh6 {[%clk 0:00:20.9]} 18... Rg8 {[%clk 0:00:34.1]} 19. Nxd7
{[%clk 0:00:17.9]} 19... Qxd7 {[%clk 0:00:33.7]} 20. e5 {[%clk 0:00:18.3]} 20...
Qd5 {[%clk 0:00:19.5]} 21. Be4 {[%clk 0:00:17.4]} 21... Qxd1 {[%clk 0:00:17.9]}
22. Raxd1 {[%clk 0:00:18.3]} 22... Nxe4 {[%clk 0:00:16.6]} 23. Rxe4 {[%clk
0:00:19.1]} 23... hxg2 {[%clk 0:00:15.9]} 24. Nf5 {[%clk 0:00:18]} 24... Rg6
{[%clk 0:00:15.5]} 25. Be3 {[%clk 0:00:15.9]} 25... b6 {[%clk 0:00:14.7]} 26.
Rf4 {[%clk 0:00:14.5]} 26... Rd8 {[%clk 0:00:12.6]} 27. Rxd8+ {[%clk 0:00:14.2]}
27... Bxd8 {[%clk 0:00:13.1]} 28. Rf3 {[%clk 0:00:14.2]} 28... Nc4 {[%clk
0:00:13.1]} 29. Bd4 {[%clk 0:00:14.2]} 29... Na3 {[%clk 0:00:11.2]} 30. Rh3
{[%clk 0:00:14.4]} 30... Nxb5 {[%clk 0:00:11.2]} 31. Rh8+ {[%clk 0:00:11.9]}
31... Kd7 {[%clk 0:00:11.7]} 32. Be3 {[%clk 0:00:12.2]} 32... Nxc3 {[%clk
0:00:08.2]} 33. Nd4 {[%clk 0:00:12.6]} 33... c5 {[%clk 0:00:07.5]} 34. e6+
{[%clk 0:00:07.4]} 34... fxe6 {[%clk 0:00:07]} 35. Rh7+ {[%clk 0:00:06.8]} 35...
Kc8 {[%clk 0:00:07.1]} 36. Rh8 {[%clk 0:00:02.4]} 36... cxd4 {[%clk 0:00:06.6]}
0-1